fUSD/lending_fUSD_20250515
["ID","MTS","AMOUNT","RATE_DAILY","PERIOD"]
[361186090,1747327885524,-400.0,0.00012369,2]
[361186091,1747327885534,-400.0,0.00012369,2]
[361186092,1747327885544,-399.55820115,0.00012369,2]
[361186093,1747327885555,-234.08,0.00012369,2]
[361186094,1747327885565,-307.31,0.00012369,2]
[361186095,1747327885575,-400.0,0.00012369,2]
[361186096,1747327885586,-300.0,0.00012369,2]
[361186097,1747327885596,-400.0,0.00012369,2]
[361186098,1747327885606,-400.0,0.00012369,2]
[361186099,1747327885616,-400.0,0.00012369,2]
[361186100,1747327885626,-309.54760297,0.00012369,2]
[361186101,1747327885636,-400.0,0.00012369,2]
[361186102,1747327885646,-300.0,0.00012369,2]
[361186103,1747327885656,-400.0,0.00012369,2]
[361186104,1747327885666,-400.0,0.00012369,2]
[361186105,1747327885676,-400.0,0.00012369,2]
[361186106,1747327885685,-400.0,0.00012369,2]
[361186107,1747327885695,-400.0,0.00012369,2]
[361186108,1747327885705,-151.0,0.00012369,2]
[361186109,1747327885715,-400.0,0.00012369,2]
[361186110,1747327885726,-400.0,0.00012369,2]
[361186111,1747327885736,-400.0,0.00012369,2]
[361186112,1747327885745,-400.0,0.00012369,2]
[361186113,1747327885755,-400.0,0.00012369,2]
[361186114,1747327885765,-400.0,0.00012369,2]
[361186115,1747327885774,-400.0,0.00012369,2]
[361186116,1747327885784,-400.0,0.00012369,2]
[361186117,1747327885794,-400.0,0.00012369,2]
[361186118,1747327885804,-400.0,0.00012369,2]
[361186119,1747327885814,-223.98,0.00012369,2]
[361186120,1747327885823,-302.81,0.00012369,2]
[361186121,1747327885834,-400.0,0.00012369,2]
[361186122,1747327885843,-325.33,0.00012369,2]
[361186123,1747327885853,-400.0,0.00012369,2]
[361186124,1747327885863,-402.6,0.00012369,2]
[361186125,1747327885872,-400.0,0.00012369,2]
[361186126,1747327885882,-400.0,0.00012369,2]
[361186127,1747327885891,-400.0,0.00012369,2]
[361186128,1747327885903,-483.12,0.00012369,2]
[361186129,1747327885915,-400.0,0.00012369,2]
[361186130,1747327885926,-400.0,0.00012369,2]
[361186131,1747327885935,-400.0,0.00012369,2]
[361186132,1747327885945,-400.0,0.00012369,2]
[361186133,1747327885955,-314.4960957,0.00012369,2]
[361186134,1747327885964,-232.02973609,0.00012369,2]
[361186135,1747327885975,-400.0,0.00012369,2]
[361186136,1747327885984,-400.0,0.00012369,2]
[361186137,1747327885994,-358.81155341,0.00012369,2]
[361186138,1747327886003,-337.12457658,0.00012369,2]
[361186139,1747327886013,-400.0,0.00012369,2]
[361186140,1747327886022,-371.61450665,0.00012369,2]
[361186141,1747327886032,-400.0,0.00012369,2]
[361186142,1747327886044,-400.0,0.00012369,2]
[361186143,1747327886054,-165.671397,0.00012369,2]
[361186144,1747327886063,-165.671392,0.00012369,2]
[361186145,1747327886073,-298.1,0.00012369,2]
[361186146,1747327886083,-400.0,0.00012369,2]
[361186147,1747327886092,-400.0,0.00012369,2]
[361186148,1747327886103,-400.0,0.00012369,2]
[361186149,1747327886113,-400.0,0.00012369,2]
[361186150,1747327886124,-400.0,0.00012369,2]
[361186151,1747327886133,-400.0,0.00012369,2]
[361186152,1747327886142,-400.0,0.00012369,2]
[361186153,1747327886152,-500.0,0.00012369,2]
[361186154,1747327886162,-348.73377859,0.00012369,2]
[361186155,1747327886172,-400.0,0.00012369,2]
[361186156,1747327886183,-400.0,0.00012369,2]
[361186157,1747327886193,-400.0,0.00012369,2]
[361186158,1747327886203,-400.0,0.00012369,2]
[361186159,1747327886213,-176.15,0.00012411,2]
[361186160,1747327886224,-500.0,0.00012438,2]
[361186161,1747327886233,-366.90041907,0.00012459,2]
[361186162,1747327886245,-150.0,0.00012499,2]
[361186163,1747327886255,-150.0,0.00012499,2]
[361186164,1747327886264,-150.0,0.00012499,2]
[361186165,1747327886274,-690.78711365,0.00012594,2]
[361186166,1747327886284,-300.0,0.00012641,2]
[361186167,1747327886294,-400.0,0.00012642,2]
[361186168,1747327886304,-400.0,0.00012642,2]
[361186169,1747327886314,-400.0,0.00012642,2]
[361186170,1747327886324,-400.0,0.00012642,2]
[361186171,1747327886333,-400.0,0.00012642,2]
[361186172,1747327886343,-2090.019108,0.00012642,2]
[361186173,1747327886353,-4459.079237,0.00012642,2]
[361186174,1747327886363,-400.0,0.00012642,2]
[361186175,1747327886372,-400.0,0.00012642,2]
[361186176,1747327886382,-400.0,0.00012642,2]
[361186177,1747327886391,-400.0,0.00012642,2]
[361186178,1747327886401,-400.0,0.00012642,2]
[361186179,1747327886411,-400.0,0.00012642,2]
[361186180,1747327886421,-400.0,0.00012642,2]
[361186181,1747327886431,-400.0,0.00012642,2]
[361186182,1747327886441,-400.0,0.00012642,2]
[361186183,1747327886451,-400.0,0.00012642,2]
[361186184,1747327886460,-168.68,0.00012642,2]
[361186185,1747327886471,-400.0,0.00012642,2]
[361186186,1747327886481,-400.0,0.00012642,2]
[361186187,1747327886490,-400.0,0.00012642,2]
[361186188,1747327886499,-400.0,0.00012642,2]
[361186189,1747327886508,-519.52,0.00012642,2]
[361186190,1747327886516,-400.0,0.00012642,2]
[361186191,1747327886526,-400.0,0.00012642,2]
[361186192,1747327886534,-400.0,0.00012642,2]
[361186193,1747327886543,-532.64,0.00012642,2]
[361186194,1747327886551,-400.0,0.00012642,2]
[361186195,1747327886560,-428.15,0.00012642,2]
[361186196,1747327886569,-400.0,0.00012642,2]
[361186197,1747327886578,-400.0,0.00012642,2]
[361186198,1747327886587,-400.0,0.00012642,2]
[361186199,1747327886597,-405.54189933,0.00012642,2]
[361186200,1747327886607,-400.0,0.00012642,2]
[361186201,1747327886617,-426.31,0.00012642,2]
[361186202,1747327886626,-400.0,0.00012642,2]
[361186203,1747327886636,-400.0,0.00012642,2]
[361186204,1747327886647,-400.0,0.00012642,2]
[361186205,1747327886656,-400.0,0.00012642,2]
[361186206,1747327886665,-400.0,0.00012642,2]
[361186207,1747327886674,-1311.61,0.00012642,2]
[361186208,1747327886683,-400.0,0.00012642,2]
[361186209,1747327886694,-400.0,0.00012642,2]
[361186210,1747327886704,-468.28,0.00012642,2]
[361186211,1747327886713,-400.0,0.00012642,2]
[361186212,1747327886723,-400.0,0.00012642,2]
[361186213,1747327886734,-803.08,0.00012642,2]
[361186214,1747327886743,-200.0,0.00012642,2]
[361186215,1747327886753,-492.86,0.00012642,2]
[361186216,1747327886763,-400.0,0.00012642,2]
[361186217,1747327886772,-244.893051,0.00012642,2]
[361186218,1747327886782,-400.0,0.00012642,2]
[361186219,1747327886791,-400.0,0.00012642,2]
[361186220,1747327886800,-400.0,0.00012642,2]
[361186221,1747327886810,-1872.23,0.00012642,2]
[361186222,1747327886819,-400.0,0.00012642,2]
[361186223,1747327886828,-400.0,0.00012642,2]
[361186224,1747327886837,-400.0,0.00012642,2]
[361186225,1747327886847,-400.0,0.00012642,2]
[361186226,1747327886856,-400.0,0.00012642,2]
[361186227,1747327886865,-400.0,0.00012642,2]
[361186228,1747327886875,-400.0,0.00012642,2]
[361186229,1747327886884,-400.0,0.00012642,2]
[361186230,1747327886893,-400.0,0.00012642,2]
[361186231,1747327886902,-400.0,0.00012642,2]
[361186232,1747327886910,-400.0,0.00012642,2]
[361186233,1747327886918,-400.0,0.00012642,2]
[361186234,1747327886932,-819.93,0.00012642,2]
[361186235,1747327886942,-934.06,0.00012642,2]
[361186236,1747327886951,-400.0,0.00012642,2]
[361186237,1747327886960,-400.0,0.00012642,2]
[361186238,1747327886970,-1231.42,0.00012642,2]
[361186239,1747327886980,-204.15,0.00012642,2]
[361186240,1747327886990,-177.46,0.00012642,2]
[361186241,1747327886999,-400.0,0.00012642,2]
[361186242,1747327887009,-400.0,0.00012642,2]
[361186243,1747327887018,-400.0,0.00012642,2]
[361186244,1747327887028,-1091.29,0.00012642,2]
[361186245,1747327887039,-853.44,0.00012642,2]
[361186246,1747327887051,-400.0,0.00012642,2]
[361186247,1747327887063,-400.0,0.00012642,2]
[361186248,1747327887073,-400.0,0.00012642,2]
[361186249,1747327887084,-400.0,0.00012642,2]
[361186250,1747327887094,-400.0,0.00012642,2]
[361186251,1747327887103,-400.0,0.00012642,2]
[361186252,1747327887113,-400.0,0.00012642,2]
[361186253,1747327887124,-314.75,0.00012642,2]
[361186254,1747327887134,-500.0,0.00012642,2]
[361186255,1747327887144,-400.0,0.00012642,2]
[361186256,1747327887154,-400.0,0.00012642,2]
[361186257,1747327887164,-400.0,0.00012642,2]
[361186258,1747327887174,-424.3,0.00012642,2]
[361186259,1747327887184,-384.82,0.00012642,2]
[361186260,1747327887194,-400.0,0.00012642,2]
[361186261,1747327887204,-548.19,0.00012642,2]
[361186262,1747327887214,-400.0,0.00012642,2]
[361186263,1747327887226,-400.0,0.00012642,2]
[361186264,1747327887235,-400.0,0.00012642,2]
[361186265,1747327887245,-400.0,0.00012642,2]
[361186266,1747327887255,-400.0,0.00012642,2]
[361186267,1747327887265,-400.0,0.00012642,2]
[361186268,1747327887275,-13778.97,0.00012642,2]
[361186269,1747327887286,-500.0,0.00012642,2]
[361186270,1747327887419,-400.0,0.00012642,2]
[361186271,1747327887442,-400.0,0.00012642,2]
[361186272,1747327887452,-400.0,0.00012642,2]
[361186273,1747327887462,-400.0,0.00012642,2]
[361186274,1747327887474,-400.0,0.00012642,2]
[361186275,1747327887484,-543.47,0.00012642,2]
[361186276,1747327887494,-400.0,0.00012642,2]
[361186277,1747327887503,-400.0,0.00012642,2]
[361186278,1747327887514,-513.36,0.00012642,2]
[361186279,1747327887523,-400.0,0.00012642,2]
[361186280,1747327887533,-288.64,0.00012642,2]
[361186281,1747327887543,-400.0,0.00012642,2]
[361186282,1747327887553,-400.0,0.00012642,2]
[361186283,1747327887562,-573.62,0.00012642,2]
[361186284,1747327887571,-512.73,0.00012642,2]
[361186285,1747327887581,-416.13,0.00012642,2]
[361186286,1747327887591,-605.73,0.00012642,2]
[361186287,1747327887601,-400.0,0.00012642,2]
[361186288,1747327887610,-400.0,0.00012642,2]
[361186289,1747327887620,-400.0,0.00012642,2]
[361186290,1747327887630,-200.0,0.00012642,2]
[361186291,1747327887640,-400.0,0.00012642,2]
[361186292,1747327887651,-400.0,0.00012642,2]
[361186293,1747327887661,-400.0,0.00012642,2]
[361186294,1747327887671,-637.82,0.00012642,2]
[361186295,1747327887681,-848.22,0.00012642,2]
[361186296,1747327887691,-400.0,0.00012642,2]
[361186297,1747327887701,-400.0,0.00012642,2]
[361186298,1747327887710,-200.0,0.00012642,2]
[361186299,1747327887722,-200.0,0.00012642,2]
[361186300,1747327887732,-400.0,0.00012642,2]
[361186301,1747327887742,-400.0,0.00012642,2]
[361186302,1747327887753,-400.0,0.00012642,2]
[361186303,1747327887763,-400.0,0.00012642,2]
[361186304,1747327887772,-386.54,0.00012642,2]
[361186305,1747327887782,-522.33,0.00012642,2]
[361186306,1747327887792,-400.0,0.00012642,2]
[361186307,1747327887802,-400.0,0.00012642,2]
[361186308,1747327887812,-209.28,0.00012642,2]
[361186309,1747327887822,-400.0,0.00012642,2]
[361186310,1747327887832,-400.0,0.00012642,2]
[361186311,1747327887842,-675.77,0.00012642,2]
[361186312,1747327887851,-400.0,0.00012642,2]
[361186313,1747327887861,-400.0,0.00012642,2]
[361186314,1747327887871,-2618.985569,0.00012642,2]
[361186315,1747327887880,-598.44,0.00012642,2]
[361186316,1747327887889,-474.7,0.00012642,2]
[361186317,1747327887899,-400.0,0.00012642,2]
[361186318,1747327887908,-400.0,0.00012642,2]
[361186319,1747327887919,-151.304774,0.00012643,2]
[361186320,1747327887928,-400.0,0.00012643,2]
[361186321,1747327887938,-223.09683545,0.00012643,2]
[361186322,1747327887947,-456.57,0.00012643,2]
[361186323,1747327887957,-526.31,0.00012643,2]
[361186324,1747327887967,-400.0,0.00012643,2]
[361186325,1747327887981,-400.0,0.00012643,2]
[361186326,1747327887991,-400.0,0.00012643,2]
[361186327,1747327888001,-400.0,0.00012643,2]
[361186328,1747327888011,-400.0,0.00012643,2]
[361186329,1747327888020,-400.0,0.00012643,2]
[361186330,1747327888030,-400.0,0.00012643,2]
[361186331,1747327888043,-442.19873773,0.00012643,2]
[361186332,1747327888054,-400.0,0.00012643,2]
[361186333,1747327888064,-400.0,0.00012643,2]
[361186334,1747327888074,-427.03,0.00012643,2]
[361186335,1747327888085,-400.0,0.00012643,2]
[361186336,1747327888095,-400.0,0.00012643,2]
[361186337,1747327888105,-400.0,0.00012643,2]
[361186338,1747327888115,-400.0,0.00012643,2]
[361186339,1747327888125,-400.0,0.00012643,2]
[361186340,1747327888135,-358.98,0.00012643,2]
[361186341,1747327888145,-280.94,0.00012643,2]
[361186342,1747327888156,-394.52648634,0.00012643,2]
[361186343,1747327888167,-400.0,0.00012643,2]
[361186344,1747327888177,-400.0,0.00012643,2]
[361186345,1747327888188,-400.0,0.00012643,2]
[361186346,1747327888199,-400.0,0.00012643,2]
[361186347,1747327888209,-450.2,0.00012643,2]
[361186348,1747327888221,-400.0,0.00012643,2]
[361186349,1747327888232,-539.00340093,0.00012643,2]
[361186350,1747327888242,-400.0,0.00012643,2]
[361186351,1747327888252,-400.0,0.00012643,2]
[361186352,1747327888261,-400.0,0.00012643,2]
[361186353,1747327888270,-400.0,0.00012643,2]
[361186354,1747327888280,-151.0,0.00012643,2]
[361186355,1747327888289,-400.0,0.00012643,2]
[361186356,1747327888299,-400.0,0.00012643,2]
[361186357,1747327888308,-400.0,0.00012643,2]
[361186358,1747327888318,-377.32677573,0.00012643,2]
[361186359,1747327888327,-400.0,0.00012643,2]
[361186360,1747327888337,-402.02910293,0.00012643,2]
[361186361,1747327888347,-400.0,0.00012643,2]
[361186362,1747327888357,-400.0,0.00012643,2]
[361186363,1747327888367,-400.0,0.00012643,2]
[361186364,1747327888377,-400.0,0.00012643,2]
[361186365,1747327888386,-400.0,0.00012643,2]
[361186366,1747327888397,-400.0,0.00012643,2]
[361186367,1747327888407,-400.0,0.00012643,2]
[361186368,1747327888417,-400.0,0.00012643,2]
[361186369,1747327888426,-400.0,0.00012643,2]
[361186370,1747327888436,-400.0,0.00012643,2]
[361186371,1747327888446,-400.0,0.00012643,2]
[361186372,1747327888456,-151.0,0.00012643,2]
[361186373,1747327888465,-151.0,0.00012643,2]
[361186374,1747327888477,-509.74,0.00012643,2]
[361186375,1747327888487,-400.0,0.00012643,2]
[361186376,1747327888497,-500.0,0.00012643,2]
[361186377,1747327888507,-500.0,0.00012643,2]
[361186378,1747327888517,-400.0,0.00012643,2]
[361186379,1747327888527,-2322.98030654,0.00012817,2]
[361186380,1747327888536,-239.018,0.00012897,2]
[361186381,1747327888546,-500.0,0.00012897,2]
[361186382,1747327888556,-165.44006915,0.000129,2]
[361186383,1747327888566,-1352.81378869,0.000129,2]
[361186384,1747327888576,-1000.0,0.00012906,2]
[361186385,1747327888585,-309.93556122,0.00012915,2]
[361186386,1747327888595,-400.0,0.00012916,2]
[361186387,1747327888605,-400.0,0.00012916,2]
[361186388,1747327888615,-400.0,0.00012916,2]
[361186389,1747327888624,-478.89,0.00012916,2]
[361186390,1747327888634,-400.0,0.00012916,2]
[361186391,1747327888644,-180.900006,0.00012916,2]
[361186392,1747327888654,-2090.019108,0.00012916,2]
[361186393,1747327888664,-4459.079237,0.00012916,2]
[361186394,1747327888674,-400.0,0.00012916,2]
[361186395,1747327888684,-400.0,0.00012916,2]
[361186396,1747327888695,-400.0,0.00012916,2]
[361186397,1747327888705,-433.48,0.00012916,2]
[361186398,1747327888715,-400.0,0.00012916,2]
[361186399,1747327888729,-344.0,0.00012916,2]
[361186400,1747327888739,-271.0,0.00012916,2]
[361186401,1747327888750,-165.19,0.00012916,2]
[361186402,1747327888760,-400.0,0.00012916,2]
[361186403,1747327888771,-400.0,0.00012916,2]
[361186404,1747327888780,-335.31,0.00012916,2]
[361186405,1747327888790,-400.0,0.00012916,2]
[361186406,1747327888800,-400.0,0.00012916,2]
[361186407,1747327888810,-400.0,0.00012916,2]
[361186408,1747327888819,-400.0,0.00012916,2]
[361186409,1747327888829,-320.6,0.00012916,2]
[361186410,1747327888841,-400.0,0.00012916,2]
[361186411,1747327888850,-400.0,0.00012916,2]
[361186412,1747327888860,-384.24,0.00012916,2]
[361186413,1747327888870,-400.0,0.00012916,2]
[361186414,1747327888879,-400.0,0.00012916,2]
[361186415,1747327888889,-400.0,0.00012916,2]
[361186416,1747327888899,-400.0,0.00012916,2]
[361186417,1747327888909,-400.0,0.00012916,2]
[361186418,1747327888918,-400.0,0.00012916,2]
[361186419,1747327888928,-400.0,0.00012916,2]
[361186420,1747327888938,-400.0,0.00012916,2]
[361186421,1747327888947,-1311.61,0.00012916,2]
[361186422,1747327888956,-400.0,0.00012916,2]
[361186423,1747327888965,-400.0,0.00012916,2]
[361186424,1747327888979,-468.28,0.00012916,2]
[361186425,1747327888988,-400.0,0.00012916,2]
[361186426,1747327888998,-400.0,0.00012916,2]
[361186427,1747327889007,-803.08,0.00012916,2]
[361186428,1747327889017,-492.86,0.00012916,2]
[361186429,1747327889026,-400.0,0.00012916,2]
[361186430,1747327889037,-244.893051,0.00012916,2]
[361186431,1747327889049,-400.0,0.00012916,2]
[361186432,1747327889059,-525.76,0.00012916,2]
[361186433,1747327889068,-400.0,0.00012916,2]
[361186434,1747327889078,-1872.23,0.00012916,2]
[361186435,1747327889089,-150.5906308,0.00012916,2]
[361186436,1747327889098,-400.0,0.00012916,2]
[361186437,1747327889107,-400.0,0.00012916,2]
[361186438,1747327889117,-400.0,0.00012916,2]
[361186439,1747327889126,-506.92,0.00012916,2]
[361186440,1747327889136,-400.0,0.00012916,2]
[361186441,1747327889145,-400.0,0.00012916,2]
[361186442,1747327889155,-400.0,0.00012916,2]
[361186443,1747327889165,-400.0,0.00012916,2]
[361186444,1747327889174,-400.0,0.00012916,2]
[361186445,1747327889184,-400.0,0.00012916,2]
[361186446,1747327889194,-934.06,0.00012916,2]
[361186447,1747327889203,-400.0,0.00012916,2]
[361186448,1747327889212,-400.0,0.00012916,2]
[361186449,1747327889223,-1231.42,0.00012916,2]
[361186450,1747327889232,-400.0,0.00012916,2]
[361186451,1747327889242,-400.0,0.00012916,2]
[361186452,1747327889252,-400.0,0.00012916,2]
[361186453,1747327889262,-1091.29,0.00012916,2]
[361186454,1747327889272,-853.44,0.00012916,2]
[361186455,1747327889282,-400.0,0.00012916,2]
[361186456,1747327889292,-400.0,0.00012916,2]
[361186457,1747327889302,-400.0,0.00012916,2]
[361186458,1747327889311,-400.0,0.00012916,2]
[361186459,1747327889319,-400.0,0.00012916,2]
[361186460,1747327889327,-400.0,0.00012916,2]
[361186461,1747327889336,-400.0,0.00012916,2]
[361186462,1747327889346,-400.0,0.00012916,2]
[361186463,1747327889355,-400.0,0.00012916,2]
[361186464,1747327889364,-400.0,0.00012916,2]
[361186465,1747327889375,-424.3,0.00012916,2]
[361186466,1747327889386,-548.19,0.00012916,2]
[361186467,1747327889395,-163.71252489,0.00012916,2]
[361186468,1747327889405,-400.0,0.00012916,2]
[361186469,1747327889415,-400.0,0.00012916,2]
[361186470,1747327889424,-400.0,0.00012916,2]
[361186471,1747327889434,-400.0,0.00012916,2]
[361186472,1747327889443,-288.04,0.00012916,2]
[361186473,1747327889453,-400.0,0.00012916,2]
[361186474,1747327889463,-13778.97,0.00012916,2]
[361186475,1747327889476,-400.0,0.00012916,2]
[361186476,1747327889485,-528.4,0.00012916,2]
[361186477,1747327889495,-400.0,0.00012916,2]
[361186478,1747327889505,-400.0,0.00012916,2]
[361186479,1747327889515,-543.47,0.00012916,2]
[361186480,1747327889524,-230.19,0.00012916,2]
[361186481,1747327889535,-400.0,0.00012916,2]
[361186482,1747327889544,-400.0,0.00012916,2]
[361186483,1747327889554,-400.0,0.00012916,2]
[361186484,1747327889563,-400.0,0.00012916,2]
[361186485,1747327889572,-573.62,0.00012916,2]
[361186486,1747327889582,-512.73,0.00012916,2]
[361186487,1747327889592,-416.13,0.00012916,2]
[361186488,1747327889732,-605.73,0.00012916,2]
[361186489,1747327889742,-400.0,0.00012916,2]
[361186490,1747327889752,-504.77,0.00012916,2]
[361186491,1747327889762,-400.0,0.00012916,2]
[361186492,1747327889772,-151.71,0.00012916,2]
[361186493,1747327889782,-400.0,0.00012916,2]
[361186494,1747327889792,-400.0,0.00012916,2]
[361186495,1747327889803,-637.82,0.00012916,2]
[361186496,1747327889813,-848.22,0.00012916,2]
[361186497,1747327889822,-400.0,0.00012916,2]
[361186498,1747327889832,-400.0,0.00012916,2]
[361186499,1747327889842,-400.0,0.00012916,2]
[361186500,1747327889852,-400.0,0.00012916,2]
[361186501,1747327889862,-400.0,0.00012916,2]
[361186502,1747327889872,-400.0,0.00012916,2]
[361186503,1747327889882,-400.0,0.00012916,2]
[361186504,1747327889892,-505.48338335,0.00012916,2]
[361186505,1747327889902,-220.76,0.00012916,2]
[361186506,1747327889911,-400.0,0.00012916,2]
[361186507,1747327889920,-675.77,0.00012916,2]
[361186508,1747327889931,-400.0,0.00012916,2]
[361186509,1747327889941,-400.0,0.00012916,2]
[361186510,1747327889952,-2618.985569,0.00012916,2]
[361186511,1747327889962,-598.44,0.00012916,2]
[361186512,1747327889973,-244.51,0.00012916,2]
[361186513,1747327889982,-400.0,0.00012916,2]
[361186514,1747327889992,-285.52133239,0.00012917,2]
[361186515,1747327890001,-300.0,0.00012917,2]
[361186516,1747327890011,-313.32,0.00012917,2]
[361186517,1747327890021,-400.0,0.00012917,2]
[361186518,1747327890031,-400.0,0.00012917,2]
[361186519,1747327890043,-386.13786535,0.00012917,2]
[361186520,1747327890053,-400.0,0.00012917,2]
[361186521,1747327890064,-400.0,0.00012917,2]
[361186522,1747327890074,-428.72,0.00012917,2]
[361186523,1747327890084,-400.0,0.00012917,2]
[361186524,1747327890095,-435.1,0.00012917,2]
[361186525,1747327890105,-400.0,0.00012917,2]
[361186526,1747327890116,-400.0,0.00012917,2]
[361186527,1747327890125,-418.26310919,0.00012917,2]
[361186528,1747327890135,-400.0,0.00012917,2]
[361186529,1747327890145,-214.71,0.00012917,2]
[361186530,1747327890155,-400.0,0.00012917,2]
[361186531,1747327890166,-400.0,0.00012917,2]
[361186532,1747327890176,-400.0,0.00012917,2]
[361186533,1747327890186,-400.0,0.00012917,2]
[361186534,1747327890196,-212.06,0.00012917,2]
[361186535,1747327890207,-440.48,0.00012917,2]
[361186536,1747327890218,-220.32,0.00012917,2]
[361186537,1747327890230,-400.0,0.00012917,2]
[361186538,1747327890241,-400.0,0.00012917,2]
[361186539,1747327890251,-400.0,0.00012917,2]
[361186540,1747327890261,-400.0,0.00012917,2]
[361186541,1747327890271,-400.0,0.00012917,2]
[361186542,1747327890281,-400.0,0.00012917,2]
[361186543,1747327890292,-400.0,0.00012917,2]
[361186544,1747327890302,-400.0,0.00012917,2]
[361186545,1747327890313,-400.0,0.00012917,2]
[361186546,1747327890322,-400.0,0.00012917,2]
[361186547,1747327890332,-400.0,0.00012917,2]
[361186548,1747327890342,-400.0,0.00012917,2]
[361186549,1747327890353,-400.0,0.00012917,2]
[361186550,1747327890364,-500.0,0.00012934,2]
[361186551,1747327890375,-865.02,0.00012956,2]
[361186552,1747327890384,-522.0,0.00012959,2]
[361186553,1747327890394,-435.0,0.00012959,2]
[361186554,1747327890404,-38599.0,0.00012959,2]
[361186555,1747327890413,-151.0,0.00012959,2]
[361186556,1747327890423,-151.0,0.00012959,2]
[361186557,1747327890432,-6071.69711869,0.00012969,2]
[361186558,1747327890441,-500.0,0.00012973,2]
[361186559,1747327890451,-500.0,0.00012987,2]
[361186560,1747327890460,-500.0,0.00012987,2]
[361186561,1747327890473,-200.0,0.00012987,2]
[361186562,1747327890483,-7988.01180896,0.00012988,2]
[361186563,1747327890493,-167.36782625,0.0001299,2]
[361186564,1747327890503,-203.48768958,0.00012992,2]
[361186565,1747327890513,-2354.7940511,0.00012992,2]
[361186566,1747327890522,-500.0,0.00012995,2]
[361186567,1747327890532,-500.0,0.00012995,2]
[361186568,1747327890542,-151.0,0.00012996,2]
[361186569,1747327890552,-500.0,0.00012997,2]
[361186570,1747327890561,-300.0,0.00012999,2]
[361186571,1747327890571,-500.0,0.00012999,2]
[361186572,1747327890581,-500.0,0.00012999,2]
[361186573,1747327890591,-500.0,0.00012999,2]
[361186574,1747327890600,-500.0,0.00012999,2]
[361186575,1747327890610,-500.0,0.00012999,2]
[361186576,1747327890619,-281.31,0.00012999,2]
[361186577,1747327890628,-819.93,0.00012999,2]
[361186578,1747327890637,-819.93,0.00012999,2]
[361186579,1747327890647,-819.93,0.00012999,2]
[361186580,1747327890656,-819.93,0.00012999,2]
[361186581,1747327890666,-819.93,0.00012999,2]
[361186582,1747327890675,-819.93,0.00012999,2]
[361186583,1747327890685,-500.0,0.00012999,2]
[361186584,1747327890695,-500.0,0.00012999,2]
[361186585,1747327890704,-500.0,0.00012999,2]
[361186586,1747327890713,-500.0,0.00012999,2]
[361186587,1747327890726,-500.0,0.00012999,2]
[361186588,1747327890736,-500.0,0.00012999,2]
[361186589,1747327890745,-150.0,0.00012999,2]